fUSD/lending_fUSD_20240412
["ID","MTS","AMOUNT","RATE_DAILY","PERIOD"]
[322219630,1712886647815,-500.0,0.00027397,2]
[322219631,1712886647825,-500.0,0.00027397,2]
[322219632,1712886647836,-500.0,0.00027397,2]
[322219633,1712886647848,-500.0,0.00027397,2]
[322219634,1712886647859,-526.85,0.00027397,2]
[322219635,1712886647870,-514.70279205,0.00027397,2]
[322219636,1712886647880,-500.0,0.00027397,2]
[322219637,1712886647891,-500.0,0.00027397,2]
[322219638,1712886647902,-500.0,0.00027397,2]
[322219639,1712886647912,-7839.77,0.00027397,2]
[322219640,1712886647922,-500.0,0.00027397,2]
[322219641,1712886647932,-500.0,0.00027397,2]
[322219642,1712886647942,-500.0,0.00027397,2]
[322219643,1712886647952,-500.0,0.00027397,2]
[322219644,1712886647962,-500.0,0.00027397,2]
[322219645,1712886647972,-506.45559708,0.00027397,2]
[322219646,1712886647982,-362.63652039,0.00027397,2]
[322219647,1712886647993,-500.0,0.00027397,2]
[322219648,1712886648004,-500.0,0.00027397,2]
[322219649,1712886648014,-500.0,0.00027397,2]
[322219650,1712886648024,-500.0,0.00027397,2]
[322219651,1712886648034,-509.69615536,0.00027397,2]
[322219652,1712886648044,-2377.85,0.00027397,2]
[322219653,1712886648054,-500.0,0.00027397,2]
[322219654,1712886648063,-500.0,0.00027397,2]
[322219655,1712886648072,-440.45448965,0.00027397,2]
[322219656,1712886648081,-500.0,0.00027397,2]
[322219657,1712886648090,-724.9,0.00027397,2]
[322219658,1712886648101,-500.0,0.00027397,2]
[322219659,1712886648110,-507.4023147,0.00027397,2]
[322219660,1712886648121,-778.77,0.00027397,2]
[322219661,1712886648131,-500.0,0.00027397,2]
[322219662,1712886648142,-500.0,0.00027397,2]
[322219663,1712886648152,-307.21205882,0.00027397,2]
[322219664,1712886648161,-500.0,0.00027397,2]
[322219665,1712886648170,-500.0,0.00027397,2]
[322219666,1712886648180,-503.07057052,0.00027397,2]
[322219667,1712886648190,-500.0,0.00027397,2]
[322219668,1712886648200,-500.0,0.00027397,2]
[322219669,1712886648210,-500.0,0.00027397,2]
[322219670,1712886648219,-500.0,0.00027397,2]
[322219671,1712886648229,-500.0,0.00027397,2]
[322219672,1712886648238,-500.0,0.00027397,2]
[322219673,1712886648248,-503.6083114,0.00027397,2]
[322219674,1712886648261,-500.0,0.00027397,2]
[322219675,1712886648270,-500.0,0.00027397,2]
[322219676,1712886648280,-500.0,0.00027397,2]
[322219677,1712886648290,-500.0,0.00027397,2]
[322219678,1712886648299,-500.0,0.00027397,2]
[322219679,1712886648308,-606.29,0.00027397,2]
[322219680,1712886648318,-786.9,0.00027397,2]
[322219681,1712886648328,-1217.22,0.00027397,2]
[322219682,1712886648337,-500.0,0.00027397,2]
[322219683,1712886648347,-504.92183001,0.00027397,2]
[322219684,1712886648358,-458.91874562,0.00027397,2]
[322219685,1712886648368,-500.0,0.00027397,2]
[322219686,1712886648379,-500.0,0.00027397,2]
[322219687,1712886648389,-500.0,0.00027397,2]
[322219688,1712886648399,-501.21313484,0.00027397,2]
[322219689,1712886648409,-500.0,0.00027397,2]
[322219690,1712886648418,-500.0,0.00027397,2]
[322219691,1712886648427,-500.0,0.00027397,2]
[322219692,1712886648437,-505.03493295,0.00027397,2]
[322219693,1712886648447,-502.77342923,0.00027397,2]
[322219694,1712886648457,-500.0,0.00027397,2]
[322219695,1712886648466,-500.0,0.00027397,2]
[322219696,1712886648475,-500.0,0.00027397,2]
[322219697,1712886648485,-500.0,0.00027397,2]
[322219698,1712886648508,-11906.51,0.00027397,2]
[322219699,1712886648519,-500.0,0.00027397,2]
[322219700,1712886648528,-500.0,0.00027397,2]
[322219701,1712886648539,-500.0,0.00027397,2]
[322219702,1712886648551,-500.0,0.00027397,2]
[322219703,1712886648561,-500.0,0.00027397,2]
[322219704,1712886648571,-500.0,0.00027397,2]
[322219705,1712886648581,-500.53857241,0.00027397,2]
[322219706,1712886648591,-500.0,0.00027397,2]
[322219707,1712886648602,-500.0,0.00027397,2]
[322219708,1712886648613,-500.0,0.00027397,2]
[322219709,1712886648623,-500.0,0.00027397,2]
[322219710,1712886648633,-500.0,0.00027397,2]
[322219711,1712886648643,-501.95966005,0.00027397,2]
[322219712,1712886648652,-500.0,0.00027397,2]
[322219713,1712886648662,-831.72,0.00027397,2]
[322219714,1712886648672,-831.72,0.00027397,2]
[322219715,1712886648681,-735.01,0.00027397,2]
[322219716,1712886648691,-831.72,0.00027397,2]
[322219717,1712886648701,-831.72,0.00027397,2]
[322219718,1712886648710,-500.0,0.00027397,2]
[322219719,1712886648720,-831.72,0.00027397,2]
[322219720,1712886648730,-500.0,0.00027397,2]
[322219721,1712886648740,-500.0,0.00027397,2]
[322219722,1712886648750,-904.95,0.00027397,2]
[322219723,1712886648764,-500.0,0.00027397,2]
[322219724,1712886648773,-500.0,0.00027397,2]
[322219725,1712886648783,-507.32785875,0.00027397,2]
[322219726,1712886648793,-3115.69,0.00027397,2]
[322219727,1712886648803,-500.0,0.00027397,2]
[322219728,1712886648812,-500.0,0.00027397,2]
[322219729,1712886648822,-500.0,0.00027397,2]
[322219730,1712886648831,-503.56339043,0.00027397,2]
[322219731,1712886648842,-552.37,0.00027397,2]
[322219732,1712886648852,-170.0209064,0.00027397,2]
[322219733,1712886648862,-500.0,0.00027397,2]
[322219734,1712886648871,-500.0,0.00027397,2]
[322219735,1712886648881,-508.25526274,0.00027397,2]
[322219736,1712886648891,-500.0,0.00027397,2]
[322219737,1712886648900,-500.0,0.00027397,2]
[322219738,1712886648911,-500.0,0.00027397,2]
[322219739,1712886648922,-503.62121008,0.00027397,2]
[322219740,1712886648931,-500.0,0.00027397,2]
[322219741,1712886648945,-696.12,0.00027397,2]
[322219742,1712886648955,-500.0,0.00027397,2]
[322219743,1712886648966,-500.0,0.00027397,2]
[322219744,1712886648976,-649.78667384,0.00027397,2]
[322219745,1712886648986,-1874.14,0.00027397,2]
[322219746,1712886648995,-583.55865048,0.00027397,2]
[322219747,1712886649008,-500.0,0.00027397,2]
[322219748,1712886649018,-532.94686945,0.00027397,2]
[322219749,1712886649029,-500.0,0.00027397,2]
[322219750,1712886649039,-935.14,0.00027397,2]
[322219751,1712886649050,-500.0,0.00027397,2]
[322219752,1712886649060,-500.0,0.00027397,2]
[322219753,1712886649070,-500.72057297,0.00027397,2]
[322219754,1712886649079,-390.92028808,0.00027397,2]
[322219755,1712886649089,-500.0,0.00027397,2]
[322219756,1712886649099,-500.0,0.00027397,2]
[322219757,1712886649110,-500.0,0.00027397,2]
[322219758,1712886649120,-500.0,0.00027397,2]
[322219759,1712886649134,-500.0,0.00027397,2]
[322219760,1712886649146,-500.0,0.00027397,2]
[322219761,1712886649155,-503.01083413,0.00027397,2]
[322219762,1712886649165,-500.0,0.00027397,2]
[322219763,1712886649175,-506.55374893,0.00027397,2]
[322219764,1712886649185,-507.29948025,0.00027397,2]
[322219765,1712886649195,-500.0,0.00027397,2]
[322219766,1712886649204,-500.0,0.00027397,2]
[322219767,1712886649214,-500.0,0.00027397,2]
[322219768,1712886649227,-500.0,0.00027397,2]
[322219769,1712886649238,-508.88558331,0.00027397,2]
[322219770,1712886649249,-3841.11,0.00027397,2]
[322219771,1712886649261,-500.0,0.00027397,2]
[322219772,1712886649271,-1024.62,0.00027397,2]
[322219773,1712886649281,-500.0,0.00027397,2]
[322219774,1712886649292,-500.0,0.00027397,2]
[322219775,1712886649302,-500.0,0.00027397,2]
[322219776,1712886649312,-500.0,0.00027397,2]
[322219777,1712886649323,-500.0,0.00027397,2]
[322219778,1712886649334,-500.0,0.00027397,2]
[322219779,1712886649344,-500.0,0.00027397,2]
[322219780,1712886649354,-501.77677127,0.00027397,2]
[322219781,1712886649364,-1089.85,0.00027397,2]
[322219782,1712886649375,-500.0,0.00027397,2]
[322219783,1712886649385,-500.0,0.00027397,2]
[322219784,1712886649394,-500.0,0.00027397,2]
[322219785,1712886649404,-503.65145369,0.00027397,2]
[322219786,1712886649414,-500.0,0.00027397,2]
[322219787,1712886649425,-507.60607873,0.00027397,2]
[322219788,1712886649435,-500.0,0.00027397,2]
[322219789,1712886649445,-500.0,0.00027397,2]
[322219790,1712886649455,-500.0,0.00027397,2]
[322219791,1712886649465,-500.0,0.00027397,2]
[322219792,1712886649478,-500.0,0.00027397,2]
[322219793,1712886649488,-501.58047349,0.00027397,2]
[322219794,1712886649498,-2736.88,0.00027397,2]
[322219795,1712886649510,-500.0,0.00027397,2]
[322219796,1712886649520,-1207.45,0.00027397,2]
[322219797,1712886649531,-500.0,0.00027397,2]
[322219798,1712886649544,-500.0,0.00027397,2]
[322219799,1712886649554,-500.0,0.00027397,2]
[322219800,1712886649565,-502.22096413,0.00027397,2]
[322219801,1712886649575,-500.0,0.00027397,2]
[322219802,1712886649585,-500.0,0.00027397,2]
[322219803,1712886649596,-500.0,0.00027397,2]
[322219804,1712886649607,-500.0,0.00027397,2]
[322219805,1712886649617,-1364.72,0.00027397,2]
[322219806,1712886649628,-500.0,0.00027397,2]
[322219807,1712886649638,-503.11932643,0.00027397,2]
[322219808,1712886649647,-500.0,0.00027397,2]
[322219809,1712886649658,-500.0,0.00027397,2]
[322219810,1712886649667,-500.0,0.00027397,2]
[322219811,1712886649677,-502.61525956,0.00027397,2]
[322219812,1712886649687,-980.22,0.00027397,2]
[322219813,1712886649697,-500.0,0.00027397,2]
[322219814,1712886649707,-500.0,0.00027397,2]
[322219815,1712886649717,-500.0,0.00027397,2]
[322219816,1712886649727,-620.89644665,0.00027397,2]
[322219817,1712886649737,-359.49837553,0.00027397,2]
[322219818,1712886649747,-633.74686706,0.00027397,2]
[322219819,1712886649762,-502.17474459,0.00027397,2]
[322219820,1712886649771,-1038.48,0.00027397,2]
[322219821,1712886649781,-500.0,0.00027397,2]
[322219822,1712886649791,-502.65515024,0.00027397,2]
[322219823,1712886649801,-1847.92,0.00027397,2]
[322219824,1712886649810,-500.0,0.00027397,2]
[322219825,1712886649821,-500.0,0.00027397,2]
[322219826,1712886649831,-2587.3,0.00027397,2]
[322219827,1712886649841,-501.33983833,0.00027397,2]
[322219828,1712886649851,-500.0,0.00027397,2]
[322219829,1712886649861,-500.0,0.00027397,2]
[322219830,1712886649871,-500.0,0.00027397,2]
[322219831,1712886649881,-515.44024626,0.00027397,2]
[322219832,1712886649891,-503.05475383,0.00027397,2]
[322219833,1712886649901,-500.0,0.00027397,2]
[322219834,1712886649910,-500.0,0.00027397,2]
[322219835,1712886649920,-578.80484215,0.00027397,2]
[322219836,1712886649930,-511.13,0.00027397,2]
[322219837,1712886649941,-500.0,0.00027397,2]
[322219838,1712886649951,-583.92771389,0.00027397,2]
[322219839,1712886649961,-503.45607492,0.00027397,2]
[322219840,1712886649971,-500.0,0.00027397,2]
[322219841,1712886649981,-3110.63,0.00027397,2]
[322219842,1712886649991,-500.0,0.00027397,2]
[322219843,1712886650002,-500.0,0.00027397,2]
[322219844,1712886650012,-500.0,0.00027397,2]
[322219845,1712886650021,-365.14288216,0.00027397,2]
[322219846,1712886650031,-2016.1,0.00027397,2]
[322219847,1712886650042,-500.0,0.00027397,2]
[322219848,1712886650052,-1095.59,0.00027397,2]
[322219849,1712886650062,-500.0,0.00027397,2]
[322219850,1712886650072,-500.0,0.00027397,2]
[322219851,1712886650082,-500.0,0.00027397,2]
[322219852,1712886650093,-500.0,0.00027397,2]
[322219853,1712886650102,-500.0,0.00027397,2]
[322219854,1712886650113,-510.45664133,0.00027397,2]
[322219855,1712886650122,-1477.06,0.00027397,2]
[322219856,1712886650132,-246.5241556,0.00027397,2]
[322219857,1712886650142,-500.0,0.00027397,2]
[322219858,1712886650159,-500.0,0.00027397,2]
[322219859,1712886650169,-500.0,0.00027397,2]
[322219860,1712886650180,-532.29229883,0.00027397,2]
[322219861,1712886650189,-500.24388823,0.00027397,2]
[322219862,1712886650199,-500.0,0.00027397,2]
[322219863,1712886650209,-500.0,0.00027397,2]
[322219864,1712886650219,-500.0,0.00027397,2]
[322219865,1712886650229,-1227.44,0.00027397,2]
[322219866,1712886650239,-500.0,0.00027397,2]
[322219867,1712886650249,-500.0,0.00027397,2]
[322219868,1712886650260,-502.04203383,0.00027397,2]
[322219869,1712886650275,-2510.55,0.00027397,2]
[322219870,1712886650285,-50.73352525,0.00027397,2]
[322219871,1712886650849,-533.69980953,0.00027397,2]
[322219872,1712886650859,-1222.49,0.00027397,2]
[322219873,1712886650868,-500.0,0.00027397,2]
[322219874,1712886650879,-500.0,0.00027397,2]
[322219875,1712886650889,-409.44019035,0.00027397,2]
[322219876,1712886650901,-90.55980965,0.00027397,2]
[322219877,1712886650911,-500.0,0.00027397,2]
[322219878,1712886650920,-500.0,0.00027397,2]
[322219879,1712886650930,-1185.69,0.00027397,2]
[322219880,1712886650946,-500.0,0.00027397,2]
[322219881,1712886650964,-500.0,0.00027397,2]
[322219882,1712886650975,-500.0,0.00027397,2]
[322219883,1712886650985,-573.78918391,0.00027397,2]
[322219884,1712886650995,-500.0,0.00027397,2]
[322219885,1712886651006,-501.91197036,0.00027397,2]
[322219886,1712886651016,-522.73,0.00027397,2]
[322219887,1712886651025,-500.0,0.00027397,2]
[322219888,1712886651034,-1354.75,0.00027397,2]
[322219889,1712886651044,-500.0,0.00027397,2]
[322219890,1712886651053,-500.0,0.00027397,2]
[322219891,1712886651063,-500.0,0.00027397,2]
[322219892,1712886651072,-528.22863221,0.00027397,2]
[322219893,1712886651082,-500.0,0.00027397,2]
[322219894,1712886651091,-622.09641653,0.00027397,2]
[322219895,1712886651101,-500.0,0.00027397,2]
[322219896,1712886651111,-500.0,0.00027397,2]
[322219897,1712886651120,-500.0,0.00027397,2]
[322219898,1712886651129,-500.0,0.00027397,2]
[322219899,1712886651139,-3531.77,0.00027397,2]
[322219900,1712886651149,-500.0,0.00027397,2]
[322219901,1712886651159,-513.31396881,0.00027397,2]
[322219902,1712886651169,-500.0,0.00027397,2]
[322219903,1712886651179,-846.46,0.00027397,2]
[322219904,1712886651188,-500.0,0.00027397,2]
[322219905,1712886651198,-500.0,0.00027397,2]
[322219906,1712886651207,-500.0,0.00027397,2]
[322219907,1712886651217,-500.0,0.00027397,2]
[322219908,1712886651226,-500.0,0.00027397,2]
[322219909,1712886651235,-500.0,0.00027397,2]
[322219910,1712886651245,-642.25434253,0.00027397,2]
[322219911,1712886651254,-508.92810835,0.00027397,2]
[322219912,1712886651263,-500.0,0.00027397,2]
[322219913,1712886651273,-500.0,0.00027397,2]
[322219914,1712886651283,-500.0,0.00027397,2]
[322219915,1712886651293,-500.0,0.00027397,2]
[322219916,1712886651303,-569.56781619,0.00027397,2]
[322219917,1712886651312,-500.0,0.00027397,2]
[322219918,1712886651322,-500.0,0.00027397,2]
[322219919,1712886651332,-500.0,0.00027397,2]
[322219920,1712886651342,-541.06536464,0.00027397,2]
[322219921,1712886651351,-8261.57,0.00027397,2]
[322219922,1712886651361,-500.0,0.00027397,2]
[322219923,1712886651370,-500.0,0.00027397,2]
[322219924,1712886651380,-500.0,0.00027397,2]
[322219925,1712886651389,-500.0,0.00027397,2]
[322219926,1712886651399,-1458.79,0.00027397,2]
[322219927,1712886651408,-500.0,0.00027397,2]
[322219928,1712886651418,-500.0,0.00027397,2]
[322219929,1712886651430,-548.58235739,0.00027397,2]
[322219930,1712886651440,-500.0,0.00027397,2]
[322219931,1712886651450,-500.0,0.00027397,2]
[322219932,1712886651460,-1048.57,0.00027397,2]
[322219933,1712886651470,-500.0,0.00027397,2]
[322219934,1712886651480,-201.99588992,0.00027397,2]
[322219935,1712886651490,-15765.46,0.00027397,2]
[322219936,1712886651499,-79759.12,0.00027397,2]
[322219937,1712886651509,-1187.63,0.00027397,10]
[322219938,1712886651518,-552.43,0.000274,2]
[322219939,1712886651528,-152.40306159,0.00027405,2]
[322219940,1712886651538,-44418.79144045,0.00027406,2]
[322219941,1712886651553,-3229.87777611,0.00027406,2]
[322219942,1712886651897,-256.58984066,0.00027397,2]
[322219943,1712886651913,-243.41015934,0.00027397,2]
[322219944,1712886651922,-506.46941639,0.00027397,2]
[322219945,1712886651931,-511.25132482,0.00027397,2]
[322219946,1712886651940,-1964.33208009,0.00027406,2]
[322219947,1712886651955,-8835.81026865,0.00027406,2]
[322219948,1712886651964,-154.67867002,0.00027432,2]
[322219949,1712886651974,-155.60556781,0.00027444,2]
[322219950,1712886651983,-157.59573881,0.00027469,2]
[322219951,1712886651992,-11286.54721154,0.0002747,2]
[322219952,1712886652002,-500.0,0.0002747,2]
[322219953,1712886652012,-437.51471909,0.0002747,2]
[322219954,1712886652022,-529.69578291,0.0002747,2]
[322219955,1712886652031,-500.0,0.0002747,2]
[322219956,1712886652041,-268.56248131,0.0002747,2]
[322219957,1712886652050,-831.72,0.0002747,2]
[322219958,1712886652059,-831.72,0.0002747,2]
[322219959,1712886652068,-831.72,0.0002747,2]
[322219960,1712886652078,-831.72,0.0002747,2]
[322219961,1712886652087,-831.72,0.0002747,2]
[322219962,1712886652097,-831.72,0.0002747,2]
[322219963,1712886652106,-831.72,0.0002747,2]
[322219964,1712886652115,-405.50761333,0.00027471,2]
[322219965,1712886652124,-901868.6789395,0.00027471,7]
[322219966,1712886652141,-707.80456552,0.00027471,7]
[322219967,1712886652341,-500.0,0.00027397,2]
[322219968,1712886652353,-2473.86100584,0.00027471,7]
[322219969,1712886652364,-1708.2330552,0.00027471,7]
[322219970,1712886652379,-6470.73891224,0.00027471,7]
[322219971,1712886652395,-705686.96438322,0.00027471,7]
[322219972,1712886652404,-265.567428,0.00027471,7]
[322219973,1712886652413,-265.567428,0.00027471,7]
[322219974,1712886652423,-14463.0,0.00027479,4]
[322219975,1712886652432,-151.60914001,0.00027542,2]
[322219976,1712886652441,-742.6445408,0.00027571,2]
[322219977,1712886652451,-451.99012137,0.00027571,13]
[322219978,1712886652461,-831.72,0.0002767,2]
[322219979,1712886652471,-831.72,0.0002767,2]
[322219980,1712886652480,-831.72,0.0002767,2]
[322219981,1712886652489,-831.72,0.0002767,2]
[322219982,1712886652499,-831.72,0.0002767,2]
[322219983,1712886652509,-831.72,0.0002767,2]
[322219984,1712886652518,-225528.60586636,0.0002767,7]
[322219985,1712886652537,-6599.99999996,0.0002767,7]
[322219986,1712886652551,-2542.23819035,0.0002767,7]
[322219987,1712886652935,323.24218697,0.00016712,2]
[322219988,1712886653041,-628.55305748,0.0002767,7]
[322219989,1712886653056,-313514.32531092,0.0002767,7]
[322219990,1712886653723,435.54346527,0.00016712,2]
[322219991,1712886671940,323.24218697,0.00016712,2]
[322219992,1712886678260,435.54346527,0.00016712,2]
[322219993,1712886685206,1137.78056628,0.00034111,30]
[322219994,1712886688905,398.39429504,0.00034111,30]
[322219995,1712886689088,4446.00251602,0.00034111,30]
[322219996,1712886689566,45215.89805352,0.00034111,30]
[322219997,1712886690142,151394.5384879,0.00034111,30]
[322219998,1712886690577,127669.83137042,0.00034111,30]
[322219999,1712886692072,323.24218697,0.00016712,2]
[322220000,1712886700257,435.54346527,0.00016712,2]
[322220001,1712886705662,170944.92288934,0.00034111,30]
[322220002,1712886706269,1716.92498907,0.00034111,30]
[322220003,1712886707926,323.24218697,0.00016712,2]
[322220004,1712886711423,14893.37391578,0.00016712,2]
[322220005,1712886713032,806.12033976,0.00034111,30]
[322220006,1712886717430,3000.0,0.00034111,30]
[322220007,1712886718266,435.54346527,0.00016712,2]
[322220008,1712886719044,1037.01238265,0.00016712,2]
[322220009,1712886720824,813.83079417,0.00034111,30]
[322220010,1712886721718,155.18225944,0.00034111,30]
[322220011,1712886724037,7082.89081637,0.00034111,30]
[322220012,1712886724794,3383.74450608,0.00034111,30]
[322220013,1712886725915,243.4322628,0.00016712,2]
[322220014,1712886735188,194.79381637,0.00034111,30]
[322220015,1712886735283,1304.57170283,0.00034111,30]
[322220016,1712886735705,905.24923717,0.00034111,30]
[322220017,1712886736289,435.54346527,0.00016712,2]
[322220018,1712886750994,328.61763534,0.00034111,30]
[322220019,1712886754616,1837.48723518,0.00034111,30]
[322220020,1712886760275,391.19477087,0.00016712,2]
[322220021,1712886766126,9987.79777744,0.00034111,30]
[322220022,1712886813957,270.21084133,0.00034111,120]
[322220023,1712886823431,50000.0,0.00034111,30]
[322220024,1712886826774,32675.88028022,0.00034111,30]
[322220025,1712886827275,2844.02012196,0.00034111,30]
[322220026,1712886830253,52409.10621506,0.00034111,30]
[322220027,1712886831616,254.91118021,0.00034111,30]
[322220028,1712886836509,5569.39698243,0.0002,2]
[322220029,1712886838768,1651.69151073,0.000181,2]
[322220030,1712886843568,73848.78561381,0.00034111,30]
[322220031,1712886849610,833.01766408,0.00034111,30]
[322220032,1712886870204,190.46852552,0.00034083,30]
[322220033,1712886871196,4929.25673492,0.00015,2]
[322220034,1712886872319,2311.39156864,0.00034083,30]
[322220035,1712886873952,249.47590299,0.00034083,30]
[322220036,1712886874103,57982.11525638,0.00034083,30]
[322220037,1712886874166,2488.00831027,0.00034083,30]
[322220038,1712886874218,30583.30575797,0.00034083,30]
[322220039,1712886874485,1640.15635336,0.00034083,30]
[322220040,1712886874891,60412.49669863,0.00034083,30]
[322220041,1712886876026,1594.72473279,0.00034083,120]
[322220042,1712886899889,225.38127234,0.00020445,2]
[322220043,1712886932222,162.05336997,0.00020445,2]
[322220044,1712886964121,219.89009366,0.00020445,2]
[322220045,1712887020306,150.25418156,0.0002044,2]
[322220046,1712887025304,150.25418154,0.00020441,2]
[322220047,1712887030296,150.25418154,0.00020441,2]
[322220048,1712887085355,191.32,0.00020422,2]
[322220049,1712887202804,150.0,0.00020422,2]
[322220050,1712887203019,150.0,0.00020422,2]
[322220051,1712887203220,150.0,0.00020422,2]
[322220052,1712887203429,241.41790534,0.00020422,2]
[322220053,1712887333550,955.12726203,0.00019401,2]
[322220054,1712887355488,860.93818222,0.00019401,2]
[322220058,1712887625174,183.97,0.00019948,2]
[322220101,1712887832228,-1000.0,0.00020539,2]
[322220102,1712887832238,-155.0,0.0002054,2]
[322220103,1712887832247,-77.936,0.00020543,2]
[322220104,1712887832284,-460.72326613,0.00020543,2]
[322220105,1712887832294,-1746.48735107,0.00020545,2]
[322220106,1712887832304,-300.0,0.000209,2]
[322220107,1712887832313,-9795.27844522,0.00021,2]
[322220108,1712887832340,-400.55410547,0.00021,2]
[322220109,1712887832396,-812.31537004,0.00021,2]
[322220110,1712887832408,-553.83031853,0.00021,2]
[322220143,1712887838483,-79378.11454093,0.00021,2]
[322220144,1712887838492,-592.41,0.00023044,2]
[322220145,1712887838502,-176.28,0.00023656,2]
[322220146,1712887838513,-265.56594132,0.00024656,2]
[322220147,1712887838523,-155.98933304,0.00024656,2]
[322220148,1712887838535,-1000.0,0.00024768,2]
[322220149,1712887838546,-250.0,0.00024768,2]
[322220150,1712887838555,-250.0,0.00024821,2]
[322220151,1712887838566,-499.99,0.00024821,2]
[322220152,1712887838576,-4351.47,0.00024825,2]
[322220153,1712887838585,-1642.18,0.00024836,2]
[322220154,1712887838594,-1094.59,0.00024844,2]
[322220155,1712887838603,-551.9,0.00024855,2]
[322220156,1712887838612,-10000.0,0.00024871,2]
[322220157,1712887838621,-1800.1,0.00024899,2]
[322220158,1712887838630,-20258.64,0.00024906,2]
[322220159,1712887838640,-1852.42,0.00024915,2]
[322220160,1712887838649,-8620.86,0.00024923,2]
[322220161,1712887838658,-500.0,0.00024932,2]
[322220162,1712887838668,-183.97,0.00024935,2]
[322220163,1712887838678,-200.0,0.00024942,2]
[322220164,1712887838687,-250.0,0.00024944,2]
[322220165,1712887838696,-554.02,0.00024987,2]
[322220166,1712887838706,-540.14,0.00024996,2]
[322220167,1712887838715,-200.0,0.00025011,2]
[322220168,1712887838724,-500.0,0.00025011,2]
[322220169,1712887838733,-200.0,0.00025012,2]
[322220170,1712887838742,-462.48,0.00025012,2]
[322220171,1712887838751,-10308.48,0.00025052,2]
[322220172,1712887838761,-2505.23986466,0.00025153,2]
[322220173,1712887838770,-150.0,0.00025189,2]
[322220174,1712887838779,-2751.0,0.00025196,2]
[322220175,1712887838788,-4649.14,0.00025205,2]
[322220176,1712887838798,-240.93,0.00025219,2]
[322220177,1712887838806,-16408.39426869,0.00025245,2]
[322220178,1712887838817,-189.87,0.00025254,2]
[322220179,1712887838827,-592.41,0.00025308,2]
[322220180,1712887838837,-150.32,0.00025355,2]
[322220181,1712887838848,-7703.21,0.00025372,2]
[322220182,1712887838859,-1857.51,0.00025378,2]
[322220183,1712887838869,-177.33,0.00025426,2]
[322220184,1712887838878,-150.32,0.00025465,2]
[322220185,1712887838888,-199.55,0.00025544,2]
[322220186,1712887838901,-150.32,0.00025575,2]
[322220187,1712887838911,-1283.76776289,0.00025583,2]
[322220188,1712887838922,-199.55,0.00025608,2]
[322220189,1712887838932,-199.55,0.00025672,2]
[322220190,1712887838943,-150.32,0.00025685,2]
[322220191,1712887838953,-633.0,0.000257,2]
[322220192,1712887838963,-150.32,0.00025795,2]
[322220193,1712887838974,-150.32,0.00025905,2]
[322220194,1712887838983,-150.32,0.00026016,2]
[322220195,1712887838994,-170.89,0.00026056,2]
[322220196,1712887839003,-150.32,0.00026126,2]
[322220197,1712887839013,-150.32,0.00026236,2]
[322220198,1712887839023,-150.32,0.00026346,2]
[322220199,1712887839034,-1393.86,0.00026411,2]
[322220200,1712887839043,-150.32,0.00026456,2]
[322220201,1712887839053,-150.32,0.00026566,2]
[322220202,1712887839063,-150.32,0.00026676,2]
[322220203,1712887839073,-169.87,0.00026728,2]
[322220204,1712887839083,-500.0,0.00027097,2]
[322220205,1712887839093,-1000.0,0.00027097,2]
[322220206,1712887839102,-381.6017,0.00027097,2]